bitfinex-derivatives/quotes_SOLF0:USTF0_20250127
["timestamp","ask_amount","ask_price","bid_price","bid_amount"]
[1737998278083,26.09036745,229.14,229.08,8.897e-05]
[1737998278275,26.09036745,229.14,228.93,29.98286745]
[1737998278482,26.09036745,229.18,228.97,26.09036745]
[1737998279280,0.03106718,229.1,229.05,0.03203317]
[1737998280081,4.3667,229.06,229.05,0.03203317]
[1737998280279,4.3667,229.06,229.05,3.317e-05]
[1737998280986,0.03106718,229.1,229.05,3.317e-05]
[1737998281583,4.3667,229.06,229.05,3.317e-05]
[1737998282987,0.03106718,229.1,229.05,3.317e-05]
[1737998283383,26.09036745,229.06,229.05,3.317e-05]
[1737998283589,4.3696,228.91,228.81,5.8291]
[1737998283889,26.09036745,229.0,228.81,5.8291]
[1737998284087,26.09036745,229.0,228.83,4.3711]
[1737998284282,26.09036745,229.0,228.81,5.8291]
[1737998284487,29.59036745,229.04,228.81,5.8291]
[1737998284787,0.03252892,228.93,228.88,0.02793499]
[1737998284979,4.37,228.89,228.88,0.02793499]
[1737998285182,26.09036745,228.96,228.81,5.8291]
[1737998285384,0.03315275,228.91,228.86,0.02936681]
[1737998285588,4.3702,228.88,228.86,0.02936681]
[1737998287688,26.09036745,228.87,228.68,26.09036745]
[1737998287888,26.09036745,228.87,228.67,14.64543123]
[1737998288185,3.5,228.9,228.67,10.80613123]
[1737998288186,4.3739,228.69,228.67,10.80613123]
[1737998288386,4.3739,228.69,228.61,1.8313]
[1737998288387,4.3739,228.69,228.62,2.1723]
[1737998288588,4.3739,228.69,228.61,3.5475]
[1737998288589,26.09036745,228.74,228.61,1.7162]
[1737998288786,4.3744,228.66,228.56,4.3762]
[1737998288992,0.03034039,228.68,228.63,0.02772306]
[1737998290188,4.3743,228.67,228.63,0.02772306]
[1737998290391,0.03034039,228.68,228.63,0.02772306]
[1737998290585,4.3709,228.84,228.73,4.373]
[1737998290785,26.09036745,228.89,228.68,3.9297]
[1737998291790,0.03193353,228.81,228.76,0.02768582]
[1737998292491,3.612,228.98,228.76,0.02768582]
[1737998292686,3.612,228.98,228.79,26.09036745]
[1737998293693,3.612,228.98,228.86,0.03147916]
[1737998293694,0.03333139,228.91,228.86,0.03147916]
[1737998295087,0.03333139,228.91,228.71,26.09036745]
[1737998295392,26.09036745,228.85,228.68,3.9297]
[1737998295590,4.373,228.74,228.68,3.9297]
[1737998295782,1.8075,228.84,228.6,1.7829]
[1737998295783,26.09036745,228.81,228.6,1.7829]
[1737998296091,26.09036745,228.77,228.6,1.7829]
[1737998296493,1.8319,228.83,228.6,1.7829]
[1737998296494,0.02783674,228.73,228.68,0.02912148]
[1737998296991,0.02783674,228.73,228.68,0.02964773]
[1737998296992,0.02888673,228.73,228.68,0.02964773]
[1737998297290,1.8319,228.91,228.71,26.09036745]
[1737998297591,3.6677,228.91,228.71,26.09036745]
[1737998297792,3.6677,228.91,228.72,3.9596]
[1737998298191,4.3721,228.78,228.72,3.9596]
[1737998298392,26.09036745,228.89,228.72,3.9596]
[1737998298592,0.03063134,228.77,228.73,0.02792057]
[1737998298895,3.6677,228.91,228.74,4.3727]
[1737998299092,0.02975747,228.77,228.74,4.3727]
[1737998299390,3.6677,228.91,228.75,4.3726]
[1737998299593,9.25871,228.93,228.75,26.09036745]
[1737998299788,4.3696,228.91,228.79,26.09036745]
[1737998299995,9.25871,228.93,228.81,4.3715]
[1737998300195,9.25871,228.93,228.79,26.09036745]
[1737998300793,9.25871,228.93,228.83,26.09036745]
[1737998300990,0.02919685,228.88,228.84,0.03325372]
[1737998301991,9.25871,228.93,228.87,26.09036745]
[1737998302595,9.25871,228.93,228.84,0.03325372]
[1737998303001,0.03358651,228.91,228.84,0.03325372]
[1737998303499,4.3706,228.86,228.84,0.03325372]
[1737998304597,4.3717,228.81,228.76,74.98]
[1737998304900,1.747,228.9,228.76,74.98]
[1737998305104,4.3717,228.8,228.76,74.98]
[1737998305298,1.747,228.9,228.76,74.98]
[1737998305700,0.02871148,228.85,228.81,0.03269853]
[1737998305902,26.09036745,228.84,228.66,3.9006]
[1737998306401,2.1246,228.83,228.66,3.9006]
[1737998306703,26.09036745,228.88,228.66,29.99096745]
[1737998307204,0.03261302,228.79,228.75,0.03273153]
[1737998307702,0.02814517,228.79,228.75,0.03273153]
[1737998308600,4.3721,228.78,228.75,0.03273153]
[1737998308803,0.02814517,228.79,228.75,0.03273153]
[1737998310397,29.59036745,228.96,228.75,0.03273153]
[1737998310598,4.3707,228.86,228.74,26.09036745]
[1737998311496,0.02948198,228.82,228.78,0.02889339]
[1737998311699,0.02948198,228.82,228.78,26.11926084]
[1737998311904,0.02948198,228.82,228.79,3.9622]
[1737998312200,4.3701,228.89,228.81,4.3715]
[1737998312596,1.835,228.95,228.81,4.3715]
[1737998312800,4.3702,228.88,228.81,4.3715]
[1737998313202,4.3707,228.86,228.82,0.03126766]
[1737998313402,0.0286849,228.87,228.82,0.03126766]
[1737998313899,4.3711,228.83,228.82,0.03126766]
[1737998314099,0.0286849,228.87,228.71,2.1371]
[1737998314411,26.09036745,228.89,228.71,2.1371]
[1737998314412,26.09036745,228.85,228.71,2.1371]
[1737998314702,9.25871,228.93,228.73,26.09036745]
[1737998314907,9.25871,228.93,228.77,26.09036745]
[1737998315201,0.03244451,228.87,228.83,0.02751176]
[1737998317308,4.3706,228.86,228.83,0.02751176]
[1737998317509,0.03244451,228.87,228.83,0.02751176]
[1737998317910,4.3709,228.84,228.83,0.02751176]
[1737998318107,0.03244451,228.87,228.83,0.02751176]
[1737998318610,4.3706,228.86,228.83,0.02751176]
[1737998318808,0.03244451,228.87,228.83,1.176e-05]
[1737998319000,4.3709,228.84,228.83,1.176e-05]
[1737998322314,0.03244451,228.87,228.83,1.176e-05]
[1737998324612,4.40294451,228.87,228.83,1.176e-05]
[1737998324920,0.03244451,228.87,228.83,1.176e-05]
[1737998325711,4.3688,228.95,228.87,4.3703]
[1737998325916,26.09036745,229.06,228.84,30.12586745]
[1737998326318,4.3687,228.96,228.89,4.3699]
[1737998326514,26.09036745,229.06,228.88,26.09036745]
[1737998326718,5.9767,229.07,228.88,26.09036745]
[1737998326921,0.0316876,228.99,228.95,0.03327424]
[1737998327424,4.3997876,228.99,228.95,0.03327424]
[1737998327916,0.0316876,228.99,228.95,0.03327424]
[1737998329122,4.3686,228.96,228.95,0.03327424]
[1737998329320,0.0316876,228.99,228.95,0.03327424]
[1737998329528,4.3686,228.96,228.95,0.03327424]
[1737998329724,0.0316876,228.99,228.95,0.03327424]
[1737998330119,4.3685,228.97,228.95,0.03327424]
[1737998330418,0.0316876,228.99,228.95,0.03327424]
[1737998330620,4.3684,228.98,228.95,0.03327424]
[1737998330820,8.7273,229.23,228.96,26.09036745]
[1737998331016,4.0007,229.2,229.01,26.09036745]
[1737998331220,4.3648,229.16,229.08,4.3663]
[1737998331424,4.0007,229.2,229.05,26.09036745]
[1737998331627,24.90801361,229.24,229.09,26.09036745]
[1737998332022,0.03000974,229.19,229.14,0.03099975]
[1737998332224,4.3646,229.18,229.14,0.03099975]
[1737998332524,0.03000974,229.19,229.14,0.03099975]
[1737998335529,1.6502,229.33,229.17,26.09036745]
[1737998335727,26.09036745,229.46,229.21,26.09036745]
[1737998336032,4.3617,229.33,229.25,26.09036745]
[1737998336232,5.6876,229.45,229.25,26.09036745]
[1737998336530,26.09036745,229.38,229.19,74.92]
[1737998336727,0.03105222,229.37,229.19,74.92]
[1737998336929,26.09036745,229.34,229.19,74.92]
[1737998337233,4.364,229.21,229.19,74.92]
[1737998338026,4.3642,229.19,229.18,0.03036204]
[1737998338527,0.02770222,229.22,229.16,0.03233943]
[1737998338728,4.3646,229.17,229.16,0.03233943]
[1737998339033,0.02759826,229.21,229.16,0.03233943]
[1737998339538,0.02759826,229.21,229.16,26.12144769]
[1737998339730,5.2324,229.4,229.17,2.1868]
[1737998340733,5.2324,229.4,229.12,26.09036745]
[1737998340934,0.02825687,229.28,229.24,4.687e-05]
[1737998341130,5.63105687,229.28,229.24,4.687e-05]
[1737998341439,30.45346745,229.25,229.24,4.687e-05]
[1737998341735,26.09036745,229.25,229.04,3.9795]
[1737998341936,4.3668,229.06,229.0,74.9]
[1737998342134,26.09036745,229.16,229.0,74.9]
[1737998342535,4.3664,229.08,229.0,74.9]
[1737998342839,31.69316745,229.28,229.07,26.09036745]
[1737998343140,5.6028,229.28,229.11,26.09036745]
[1737998343641,5.6028,229.28,229.08,3.8479]
[1737998343642,8.7202,229.41,229.15,26.11798395]
[1737998343839,26.09036745,229.46,229.15,26.11798395]
[1737998343840,1.7241,229.34,229.15,26.11798395]
[1737998344043,4.3621,229.31,229.22,4.3636]
[1737998344242,1.7241,229.34,229.2,3.8479]
[1737998344643,1.7241,229.34,229.13,26.09036745]
[1737998344842,0.03323475,229.29,229.25,0.03185028]
[1737998345137,4.3628,229.27,229.25,0.03185028]
[1737998345439,4.3628,229.27,229.03,312.09036745]
[1737998345440,26.09036745,229.27,229.03,26.09036745]
[1737998345641,26.09036745,229.23,229.04,5.8174]
[1737998345843,26.09036745,229.27,229.04,3.976]
[1737998346040,4.3645,229.18,229.09,4.366]
[1737998346245,26.09036745,229.27,229.05,1.8414]
[1737998346434,0.02878943,229.16,229.11,0.03325611]
[1737998346635,4.3651,229.15,229.07,4.3665]
[1737998346835,3.48,229.29,229.05,1.8414]
[1737998346836,26.09036745,229.23,229.05,1.8414]
[1737998347038,0.03082215,229.13,229.09,0.03314048]
[1737998347242,26.09036745,229.27,229.11,4.3658]
[1737998347637,4.3643,229.19,229.11,4.3658]
[1737998348243,26.09036745,229.27,229.09,26.09036745]
[1737998348447,0.03313638,229.17,229.13,0.02976843]
[1737998348941,0.02911009,229.17,229.13,0.03333736]
[1737998350543,3.4409,229.28,229.13,0.03333736]
[1737998351046,26.09036745,229.35,229.16,26.09036745]
[1737998351249,3.4762,229.34,229.17,1.7616]
[1737998351442,3.4762,229.34,229.18,1.7589]
[1737998351639,4.3623,229.3,229.21,4.3638]
[1737998351843,0.02983147,229.28,229.24,0.03283137]
[1737998352445,2.0259,229.42,229.24,26.12319882]
[1737998352951,2.0259,229.42,229.24,26.09036745]
[1737998353149,26.09036745,229.4,229.2,26.09036745]
[1737998353448,26.09036745,229.4,229.21,4.3638]
[1737998353645,26.09036745,229.4,229.28,0.02792385]
[1737998355251,4.3622,229.3,229.28,0.02792385]
[1737998356250,4.3623,229.29,229.28,0.02792385]
[1737998356950,1.7112,229.35,229.28,0.02792385]
[1737998357153,4.362,229.31,229.28,0.02792385]
[1737998357354,4.362,229.31,229.21,2.2086]
[1737998357653,2.0259,229.42,229.27,0.03067848]
[1737998357858,1.7112,229.41,229.27,0.03067848]
[1737998358051,1.7112,229.41,229.21,28.29896745]
[1737998358250,26.09036745,229.38,229.32,6.287e-05]
[1737998358756,4.3616,229.33,229.32,6.287e-05]
[1737998359052,26.09036745,229.34,229.17,1.7616]
[1737998359247,26.09036745,229.3,229.1,1.7867]
[1737998359555,26.09036745,229.26,229.1,1.7867]
[1737998359861,4.3649,229.16,229.1,1.7867]
[1737998360061,26.09036745,229.26,229.1,1.7867]
[1737998360260,0.03121375,229.15,229.11,0.03341156]
[1737998360653,4.3648,229.17,229.08,2.005]
[1737998360857,0.03158631,229.15,229.11,0.03076405]
[1737998361052,0.03158631,229.15,229.08,2.005]
[1737998361254,0.03115812,229.14,229.09,0.0295437]
[1737998361654,26.09036745,229.26,229.08,2.005]
[1737998362260,4.3648,229.16,229.15,0.02863542]
[1737998362855,0.03230804,229.19,229.15,0.02863542]
[1737998364559,4.3648,229.16,229.15,0.02863542]
[1737998364759,0.03230804,229.19,229.04,1.7919]
[1737998364959,26.09036745,229.18,229.0,74.9]
[1737998365161,4.3658,229.11,229.04,4.3671]
[1737998365362,1.7709,229.18,229.02,26.09036745]
[1737998365659,4.3648,229.17,229.03,1.7829]
[1737998365861,1.7709,229.18,229.03,1.7829]
[1737998366058,4.3662,229.09,229.08,0.02867996]
[1737998367663,4.3677,229.01,229.0,74.9]
[1737998367967,26.09036745,229.07,228.87,36.81547665]
[1737998368261,26.09036745,229.03,228.87,10.7251092]
[1737998368563,26.09036745,228.99,228.82,3.405]
[1737998368963,0.03232641,228.97,228.93,0.03156666]
[1737998369167,0.03232641,228.97,228.83,26.09036745]
[1737998369363,0.03232641,228.97,228.81,76.9631]
[1737998369364,0.03232641,228.97,228.93,0.03347863]
[1737998369561,26.09036745,228.99,228.81,76.9631]
[1737998369764,4.3699,228.9,228.81,74.88]
[1737998370765,0.0310069,228.88,228.83,0.02919079]
[1737998371163,0.0310069,228.88,228.83,26.11955824]
[1737998371365,2.0305,229.02,228.87,26.09036745]
[1737998371562,4.3679,229.0,228.89,4.3698]
[1737998371964,1.8108,229.09,228.92,4.3694]
[1737998372167,3.8286,229.09,228.88,2.1803]
[1737998372465,4.368,229.0,228.96,0.03273236]
[1737998372666,0.02953088,229.01,228.96,0.03273236]
[1737998373169,0.02953088,229.01,228.82,26.09036745]
[1737998373358,26.09036745,228.94,228.77,10.76468791]
[1737998373557,4.37,228.89,228.74,4.3727]
[1737998373761,3.8018,228.93,228.74,4.3727]
[1737998374066,26.09036745,228.9,228.7,5.7582]
[1737998374360,26.09036745,228.86,228.78,0.03337592]
[1737998374555,0.02751853,228.82,228.78,0.03337592]
[1737998374758,26.09036745,228.86,228.65,26.09036745]
[1737998374759,26.09036745,228.86,228.66,4.3742]
[1737998374960,0.02972883,228.82,228.78,0.0295709]
[1737998375666,26.12009628,228.82,228.64,3.9466]
[1737998375869,26.09036745,228.82,228.64,3.9466]
[1737998376066,4.3728,228.75,228.65,4.3745]
[1737998376265,26.09036745,228.82,228.64,3.9466]
[1737998376661,4.40234415,228.75,228.71,0.03224543]
[1737998377167,0.02964415,228.75,228.71,0.03224543]
[1737998377764,0.02964415,228.75,228.71,4.40554543]
[1737998377960,0.02964415,228.75,228.71,0.03224543]
[1737998378165,26.09036745,228.91,228.71,0.03224543]
[1737998378566,26.09036745,228.91,228.69,26.09036745]
[1737998379270,0.030434,228.82,228.78,0.03161951]
[1737998379465,26.09036745,228.91,228.78,0.03161951]
[1737998379667,0.03111241,228.82,228.78,0.03161951]
[1737998379860,4.3711,228.84,228.78,0.03161951]
[1737998380065,0.03236468,228.82,228.78,0.03161951]
[1737998380268,26.09036745,228.87,228.78,0.03161951]
[1737998380468,0.03264332,228.82,228.64,3.9466]
[1737998380669,26.09036745,228.83,228.64,3.9466]
[1737998380865,26.09036745,228.79,228.64,3.9466]
[1737998381066,1.6733,228.78,228.64,3.9466]
[1737998381271,1.6733,228.78,228.63,1.7291]
[1737998381571,4.3735,228.71,228.62,79.2951]
[1737998381863,2.0168,228.77,228.62,74.92]
[1737998382063,0.02828551,228.69,228.66,4.3743]
[1737998382259,2.0168,228.77,228.62,74.92]
[1737998382662,0.02820738,228.69,228.65,0.03283183]
[1737998384367,0.02820738,228.69,228.65,4.40723183]
[1737998384568,0.02820738,228.69,228.65,0.03283183]
[1737998386273,0.02820738,228.69,228.65,4.40723183]
[1737998386470,0.02820738,228.69,228.65,0.03283183]
[1737998386771,0.02820738,228.69,228.68,4.374]
[1737998386972,26.09036745,228.87,228.65,26.12319928]
[1737998387173,26.09036745,228.87,228.69,26.09036745]
[1737998387471,26.09036745,228.87,228.73,4.373]
[1737998387472,4.372,228.79,228.73,4.373]
[1737998387672,1.7322,228.86,228.69,26.09036745]
[1737998387973,1.7322,228.86,228.7,3.8605]
[1737998388368,4.3726,228.76,228.75,0.03104944]
[1737998388975,4.3731,228.73,228.62,74.92]
[1737998389276,0.0333185,228.8,228.63,2.0946]
[1737998389465,26.09036745,228.83,228.69,4.3738]
[1737998389664,26.09036745,228.83,228.63,2.0946]
[1737998389864,1.7322,228.86,228.65,26.09036745]
[1737998390171,4.3722,228.78,228.72,4.3732]
[1737998390374,4.3722,228.78,228.65,26.09036745]
[1737998390375,0.0294405,228.75,228.71,0.03203358]
[1737998390770,4.3719,228.79,228.73,4.373]
[1737998390973,0.03110409,228.75,228.73,4.373]
[1737998391271,0.03110409,228.75,228.74,4.3728]
[1737998392376,0.03110409,228.75,228.71,0.0292871]
[1737998392869,0.03110409,228.75,228.71,4.4024871]
[1737998393476,0.03110409,228.75,228.74,4.3728]
[1737998394679,0.03110409,228.75,228.73,4.373]
[1737998395478,0.03110409,228.75,228.74,4.3728]
[1737998398380,4.3713,228.83,228.71,0.0292871]
[1737998398577,4.3713,228.83,228.77,4.3722]
[1737998398778,26.09036745,228.91,228.69,29.57036745]
[1737998399473,26.09036745,228.87,228.71,4.3733]
[1737998399670,0.02835479,228.82,228.77,0.02990312]
[1737998400078,4.3721,228.78,228.77,0.02990312]
[1737998400777,0.02835479,228.82,228.77,0.02990312]
[1737998400979,1.8171,228.97,228.77,26.12027057]
[1737998401274,26.09036745,228.86,228.67,1.8014]
[1737998401479,26.09036745,228.9,228.67,1.8014]
[1737998401480,26.09036745,228.82,228.67,1.8014]
[1737998401673,26.09036745,228.82,228.62,79.2951]
[1737998401871,26.09036745,228.7,228.5,26.09036745]
[1737998402078,26.09036745,228.66,228.48,12.39478884]
[1737998402276,26.09036745,228.66,228.58,0.03190351]
[1737998402481,4.3754,228.61,228.58,0.03190351]
[1737998402677,0.02891676,228.59,228.58,0.03190351]
[1737998402980,26.09036745,228.65,228.58,0.03190351]
[1737998403181,0.02812048,228.61,228.58,0.03190351]
[1737998404284,26.11848793,228.61,228.48,1.732]
[1737998404476,0.02812048,228.61,228.48,1.732]
[1737998405480,0.02812048,228.61,228.52,0.03021683]
[1737998405779,0.02812048,228.61,228.52,4.40721683]
[1737998405975,0.02812048,228.61,228.52,0.03021683]
[1737998406480,26.11848793,228.61,228.52,0.03021683]
[1737998406783,26.09036745,228.57,228.52,0.03021683]
[1737998407981,4.3767,228.54,228.52,0.03021683]
[1737998408183,26.09036745,228.57,228.52,0.03021683]
[1737998408383,4.40938718,228.55,228.52,0.03021683]
[1737998408581,0.03288718,228.55,228.52,0.03021683]
[1737998410181,0.03288718,228.55,228.53,4.3768]
[1737998411284,0.03288718,228.55,228.52,0.03021683]
[1737998413084,4.3768,228.54,228.52,0.03021683]
[1737998413481,26.09036745,228.53,228.39,8.234]
[1737998413685,1.7165,228.52,228.39,2.1326]
[1737998414180,26.09036745,228.58,228.4,26.09036745]
[1737998414380,26.09036745,228.62,228.4,26.09036745]
[1737998414684,0.02821767,228.55,228.5,0.03079775]
[1737998414979,26.09036745,228.66,228.44,27.84376745]
[1737998415184,0.03300506,228.55,228.5,0.02908144]
[1737998415580,0.0312916,228.55,228.44,27.84376745]
[1737998415786,0.0312916,228.55,228.51,4.3772]
[1737998416686,0.0312916,228.55,228.5,0.0280358]
[1737998416884,3.8,228.68,228.5,0.0280358]
[1737998417087,4.3751,228.63,228.54,4.3766]
[1737998417286,3.8,228.68,228.49,1.7659]
[1737998417683,26.09036745,228.66,228.49,1.7659]
[1737998418083,0.0279214,228.6,228.55,0.03023754]
[1737998418584,4.4036214,228.6,228.55,0.03023754]
[1737998418782,0.0279214,228.6,228.55,0.03023754]
[1737998421081,4.3757,228.59,228.55,0.03023754]
[1737998421386,0.0279214,228.6,228.55,0.03023754]
[1737998421686,4.4034214,228.6,228.55,0.03023754]
[1737998421887,0.0279214,228.6,228.55,0.03023754]
[1737998422186,26.09036745,228.58,228.55,3.754e-05]
[1737998422482,4.3763,228.56,228.55,3.754e-05]
[1737998422882,52.1807349,228.58,228.33,12.38378296]
[1737998423080,26.09036745,228.47,228.33,10.69238296]
[1737998423280,26.09036745,228.43,228.33,10.69238296]
[1737998423884,4.3797,228.39,228.32,255.31931063]
[1737998424091,0.0333848,228.4,228.36,0.03099414]
[1737998424279,26.09036745,228.39,228.36,0.03099414]
[1737998424479,4.3798,228.38,228.36,0.03099414]
[1737998425181,0.0333848,228.4,228.36,0.03099414]
[1737998426182,4.3798,228.38,228.36,0.03099414]
[1737998426888,0.0333848,228.4,228.36,0.03099414]
[1737998427586,4.3798,228.38,228.36,0.03099414]
[1737998428383,0.0333848,228.4,228.36,0.03099414]
[1737998429187,0.0333848,228.4,228.38,4.3797]
[1737998429686,3.5908,228.53,228.38,4.3797]
[1737998430082,26.09036745,228.47,228.33,5.8312]
[1737998430788,4.3792,228.41,228.38,0.02979534]
[1737998431388,0.03333866,228.42,228.38,0.02979534]
[1737998432096,0.03333866,228.42,228.39,4.3794]
[1737998432391,0.03333866,228.42,228.38,0.02979534]
[1737998433693,0.03333866,228.42,228.38,4.40949534]
[1737998434393,0.03333866,228.42,228.38,0.02979534]
[1737998435784,0.03333866,228.42,228.39,4.3795]
[1737998435989,0.03333866,228.42,228.38,0.02979534]
[1737998436395,4.3795,228.39,228.38,0.02979534]
[1737998436694,4.3795,228.39,228.38,9.534e-05]
[1737998437096,4.3807,228.33,228.32,75.06]
[1737998437390,1.8105,228.39,228.32,75.06]
[1737998437592,4.3798,228.38,228.32,75.06]
[1737998437792,2.1263,228.41,228.32,75.06]
[1737998438092,4.3794,228.4,228.32,75.06]
[1737998438298,27.92966745,228.43,228.32,75.06]
[1737998438299,0.02864452,228.39,228.34,0.02923942]
[1737998439090,0.02864452,228.39,228.35,4.3802]
[1737998439298,0.02864452,228.39,228.34,0.02923942]
[1737998439794,0.02864452,228.39,228.35,4.3803]
[1737998440000,0.02864452,228.39,228.34,0.02923942]
[1737998443098,26.09036745,228.38,228.22,10.73458349]
[1737998443289,26.09036745,228.38,228.18,5.6036]
[1737998443697,4.3817,228.28,228.2,4.3832]
[1737998443896,2.0493,228.37,228.18,5.6036]
[1737998444194,0.02795864,228.3,228.25,0.03001195]
[1737998445492,4.3815,228.29,228.25,0.03001195]
[1737998446600,4.3817,228.28,228.25,0.03001195]
[1737998447899,4.3817,228.28,228.13,79.5044]
[1737998447900,4.3833,228.2,228.13,79.5044]
[1737998448093,16.21524814,228.28,228.13,75.12]
[1737998449000,0.02854768,228.23,228.18,0.02793597]
[1737998449894,0.02854768,228.23,228.02,180.25931063]
[1737998449895,16.21524814,228.2,228.02,180.25931063]
[1737998450093,0.02854768,228.23,228.02,180.25931063]
[1737998450401,16.21524814,228.18,228.02,180.25931063]
[1737998450598,16.21524814,228.18,227.99,20.10554814]
[1737998450794,4.3851,228.1,228.03,4.3864]
[1737998451000,4.3851,228.1,228.06,0.03292902]
[1737998451200,0.03088493,228.11,228.06,0.03292902]
[1737998451402,4.3854,228.09,228.06,0.03292902]
[1737998451898,4.3853,228.09,228.06,0.03292902]
[1737998452602,0.03088493,228.11,228.06,0.03292902]
[1737998452998,0.03088493,228.11,228.06,2.902e-05]
[1737998453204,4.3856,228.08,228.06,2.902e-05]
[1737998453794,4.3856,228.08,227.95,2.1295]
[1737998454001,16.21524814,228.06,227.87,1.802]
[1737998454196,16.21524814,227.94,227.86,7.99511211]
[1737998454399,16.21524814,227.9,227.86,7.99511211]
[1737998454604,16.21524814,227.9,227.72,1.7277]
[1737998454803,16.21524814,228.0,227.72,1.7277]
[1737998455205,0.03194373,227.84,227.8,0.03036734]
[1737998455405,16.21524814,227.94,227.74,254.41637162]
[1737998455709,9.27e-06,227.84,227.82,4.3904]
[1737998455907,9.27e-06,227.84,227.83,1.7277]
[1737998456103,4.3871,228.0,227.83,1.7277]
[1737998456301,16.21524814,228.02,227.83,1.7277]
[1737998456497,4.3875,227.98,227.83,1.7277]
[1737998456696,4.3875,227.98,227.82,26.42882109]
[1737998456697,26.42882109,227.99,227.78,26.42882109]
[1737998456901,0.02962557,227.93,227.88,0.03302982]
[1737998457407,0.02962557,227.93,227.89,4.3891]
[1737998457604,0.02962557,227.93,227.88,0.03302982]
[1737998457805,0.02962557,227.93,227.88,4.42222982]
[1737998458307,0.02962557,227.93,227.88,0.03302982]
[1737998459103,0.02962557,227.93,227.88,4.42232982]
[1737998459308,0.02962557,227.93,227.88,0.03302982]
[1737998459705,4.3869,228.01,227.93,4.3882]
[1737998460204,26.42882109,228.07,227.93,4.3882]
[1737998460701,2.1485,228.1,227.9,26.42882109]
[1737998460903,0.03155808,228.02,227.98,0.02895663]
[1737998461103,0.03155808,228.02,228.0,4.3869]
[1737998461414,0.03109559,228.03,227.99,0.03066216]
[1737998461708,1.7404,228.13,227.94,26.42882109]
[1737998461908,0.031972,228.03,227.99,0.03196082]
[1737998462305,26.42882109,228.07,227.89,4.3891]
[1737998462504,0.02855488,228.03,227.99,0.02930644]
[1737998462706,0.02855488,228.03,227.99,6.44e-06]
[1737998465307,0.02855488,228.03,228.0,4.3869]
[1737998465506,0.02855488,228.03,227.99,6.44e-06]
[1737998466011,4.3868,228.01,227.99,6.44e-06]
[1737998466203,0.02855488,228.03,227.99,6.44e-06]
[1737998466407,4.3867,228.02,227.99,6.44e-06]
[1737998466710,0.02855488,228.03,227.99,6.44e-06]
[1737998468109,0.02855488,228.03,228.0,4.387]
[1737998468307,0.02855488,228.03,227.99,6.44e-06]
[1737998469106,1.6681,228.2,228.08,4.3855]
[1737998469313,1.6681,228.2,228.0,2.0518]
[1737998469509,1.6681,228.2,228.03,26.42882109]
[1737998470105,1.8271,228.21,228.03,26.42882109]
[1737998470312,5.1629,228.28,228.11,26.42882109]
[1737998470510,3.7458,228.35,228.15,26.42882109]
[1737998470713,5.4287,228.35,228.2,4.383]
[1737998471111,5.4287,228.35,228.19,26.42882109]
[1737998471304,4.3812,228.31,228.19,26.42882109]
[1737998471511,0.03201689,228.29,228.25,0.03265135]
[1737998472514,1.6829,228.43,228.25,0.03265135]
[1737998472711,1.6829,228.43,228.23,26.42882109]
[1737998472913,1.6829,228.43,228.27,26.42882109]
[1737998473117,3.8344,228.46,228.27,26.42882109]
[1737998473511,1.6933,228.5,228.31,26.42882109]
[1737998473916,0.03194003,228.39,228.34,0.02929916]
[1737998474310,28.12212109,228.5,228.26,1.6808]
[1737998474505,0.02943648,228.39,228.34,4.40933691]
[1737998474806,4.3786,228.44,228.34,4.3804]
[1737998475011,0.03262389,228.39,228.34,4.4136585]
[1737998476019,0.03262389,228.39,228.34,0.0332585]
[1737998476715,0.03262389,228.39,228.26,1.6808]
[1737998477212,26.42882109,228.38,228.26,1.6808]
[1737998477412,26.42882109,228.38,228.2,7.2757]
[1737998477717,4.3819,228.27,228.2,3.7957]
[1737998478118,4.3819,228.27,228.21,0.03179487]
[1737998478314,26.42882109,228.38,228.21,0.03179487]
[1737998478315,0.02963873,228.26,228.21,0.03179487]
[1737998478711,26.42882109,228.38,228.2,3.7957]
[1737998479119,0.03080809,228.31,228.27,0.03288175]
[1737998479618,4.3814,228.3,228.27,0.03288175]
[1737998480112,4.3815,228.29,228.27,0.03288175]
[1737998480412,26.42882109,228.3,228.1,26.42882109]
[1737998480613,26.42882109,228.26,228.11,1.8036]
[1737998480816,4.3838,228.17,228.11,1.8036]
[1737998481018,26.42882109,228.26,228.06,3.8708]
[1737998481317,26.42882109,228.18,227.98,26.42882109]
[1737998481513,26.45855652,228.18,228.14,0.02778383]
[1737998481719,26.42882109,228.22,228.02,26.42882109]
[1737998481910,26.42882109,228.22,228.14,0.02765042]